Workbook

Sheet ORÇAMENTO
A1: <---- NUMERAR SERVIÇOS PARA CPU | E1: Ministério do Desenvolvimento Regional
E2: Companhia de Desenvolvimento dos Vales do São Francisco e do Parnaíba
E3: 1ª Superintendência Regional
B5: OBRA: | C5: PAVIMENTAÇÃO ASFÁLTICA EM CBUQ - VIAS URBANAS DIVERSAS - DISTRITO DE CONCEIÇÃO DE TEIXEIRAS (AUGUSTO DE LIMA / MG) | I5: BDI Serviços (%): | L5: ='BDI SERV'!E26 -> 24.67
B6: DATA: | C6: ABRIL / 2025 | I6: BDI Diferenciado Serviços (%): | L6: ='BDI FORN'!D31 -> 15
B7: PRAZO DE EXECUÇÃO: 180 DIAS | I7: BDI Fornecimentos (%): | L7: ='BDI FORN'!D31 -> 15
B8: PLANILHA DE ORÇAMENTAÇÃO
B9: ITEM | C9: CÓDIGO | D9: FONTE | E9: DISCRIMINAÇÃO | F9: TIPO | G9: UNID. | H9: QUANT. | I9: VR.UNIT.S/BDI | J9: PR. UNIT.C/BDI | K9: C. TOT.S/BDI | L9: P. TOT.C/BDI
A10: A | B10: 1 | E10: SERVIÇOS PRELIMINARES | K10: =SUM(K11:K15) -> 148843.64 | L10: =SUM(L11:L15) -> 185550.09
A11: 1 | B11: 1.1 | C11: CPU.1 | D11: CODEVASF | E11: MOBILIZAÇÃO E DESMOBILIZAÇÃO | F11: SERV | G11: GL | H11: 1 | I11: =VLOOKUP(A11,'CPU-SERV'!A:K,11,0) -> 8225.23 | J11: =TRUNC(_xlfn.IFS(F11="SERV",I11*(1+$L$5/100),F11="SERV DIF",I11*(1+$L$6/100),F11="FORN",I11*(1+$L$7/100)),2) -> 10254.39 | K11: =TRUNC(H11*I11,2) -> 8225.23 | L11: =TRUNC(H11*J11,2) -> 10254.39
A12: 2 | B12: 1.2 | C12: CPU.2 | D12: CODEVASF | E12: ADMINISTRAÇÃO LOCAL | F12: SERV | G12: GL | H12: 1 | I12: =VLOOKUP(A12,'CPU-SERV'!A:K,11,0) -> 124725.18 | J12: =TRUNC(_xlfn.IFS(F12="SERV",I12*(1+$L$5/100),F12="SERV DIF",I12*(1+$L$6/100),F12="FORN",I12*(1+$L$7/100)),2) -> 155494.88 | K12: =TRUNC(H12*I12,2) -> 124725.18 | L12: =TRUNC(H12*J12,2) -> 155494.88
A13: 3 | B13: 1.3 | C13: CPU.3 | D13: CODEVASF | E13: CANTEIRO DE OBRAS | F13: SERV | G13: GL | H13: 1 | I13: =VLOOKUP(A13,'CPU-SERV'!A:K,11,0) -> 7137.55 | J13: =TRUNC(_xlfn.IFS(F13="SERV",I13*(1+$L$5/100),F13="SERV DIF",I13*(1+$L$6/100),F13="FORN",I13*(1+$L$7/100)),2) -> 8898.38 | K13: 7137.55 | L13: 8898.38
A14: 4 | B14: 1.4 | C14: 103689 | D14: SINAPI | E14: PLACA DE OBRA EM CHAPA DE AÇO GALVANIZADO | F14: SERV | G14: M2 | H14: 4 | I14: =VLOOKUP(A14,'CPU-SERV'!A:K,11,0) -> 351.42 | J14: =TRUNC(_xlfn.IFS(F14="SERV",I14*(1+$L$5/100),F14="SERV DIF",I14*(1+$L$6/100),F14="FORN",I14*(1+$L$7/100)),2) -> 438.11 | K14: 1405.68 | L14: 1752.44
A15: 6 | B15: 1.5 | C15: 78472 | D15: SINAPI | E15: SERVIÇOS TOPOGRÁFICOS PARA PAVIMENTAÇÃO, INCLUSIVE LEVANTAMENTO PLANIALTIMÉTRICO CADASTRAL, GERAÇÃO DE NOTAS DE SERVIÇO, SEÇÕES TRANSVERSAIS E GREIDE, ESTAQUEAMENTO E ACOMPANHAMENTO EXECUTIVO | F15: SERV | G15: M2 | H15: 15000 | I15: =VLOOKUP(A15,'CPU-SERV'!A:K,11,0) -> 0.49 | J15: =TRUNC(_xlfn.IFS(F15="SERV",I15*(1+$L$5/100),F15="SERV DIF",I15*(1+$L$6/100),F15="FORN",I15*(1+$L$7/100)),2) -> 0.61 | K15: 7350 | L15: 9150
A16: B | B16: 2 | E16: TERRAPLANAGEM E PAVIMENTAÇÃO | K16: =SUM(K17:K22) -> 319767.9 | L16: =SUM(L17:L22) -> 398255.9
A17: 7 | B17: 2.1 | C17: 5502140 | D17: SICRO | E17: ESCAVAÇÃO, CARGA E TRANSPORTE DE MATERIAL DE 1ª CATEGORIA - DMT 1.000 A 1.200M, CAMINHO DE SERVIÇO EM REVESTIMENTO PRIMÁRIO | F17: SERV | G17: M3 | H17: 4500 | I17: =VLOOKUP(A17,'CPU-SERV'!A:K,11,0) -> 6.74 | J17: =TRUNC(_xlfn.IFS(F17="SERV",I17*(1+$L$5/100),F17="SERV DIF",I17*(1+$L$6/100),F17="FORN",I17*(1+$L$7/100)),2) -> 8.4 | K17: =TRUNC(H17*I17,2) -> 30330 | L17: =TRUNC(H17*J17,2) -> 37800
A18: 9 | B18: 2.2 | C18: 4011209 | D18: SICRO | E18: REGULARIZAÇÃO E COMPACTAÇÃO DO SUBLEITO | F18: SERV | G18: M2 | H18: 15000 | I18: =VLOOKUP(A18,'CPU-SERV'!A:K,11,0) -> 1.54 | J18: =TRUNC(_xlfn.IFS(F18="SERV",I18*(1+$L$5/100),F18="SERV DIF",I18*(1+$L$6/100),F18="FORN",I18*(1+$L$7/100)),2) -> 1.91 | K18: 23100 | L18: 28650
A19: 10 | B19: 2.3 | C19: 4011219 | D19: SICRO | E19: EXECUÇÃO E COMPACTAÇÃO DE BASE E OU SUB BASE PARA PAVIMENTAÇÃO COM SOLO ESTABILIZADO GRANULOMETRICAMENTE SEM MISTURA, COM MATERIAL DE JAZIDA - EXCLUSIVE TRANSPORTE | F19: SERV | G19: M3 | H19: 2200 | I19: =VLOOKUP(A19,'CPU-SERV'!A:K,11,0) -> 14.78 | J19: =TRUNC(_xlfn.IFS(F19="SERV",I19*(1+$L$5/100),F19="SERV DIF",I19*(1+$L$6/100),F19="FORN",I19*(1+$L$7/100)),2) -> 18.42 | K19: 32516 | L19: 40524
A20: 12 | B20: 2.4 | C20: 4011352 | D20: SICRO | E20: IMPRIMAÇÃO COM EMULSÃO ASFÁLTICA (EAI) | F20: SERV | G20: M2 | H20: 14400 | I20: =VLOOKUP(A20,'CPU-SERV'!A:K,11,0) -> 0.4 | J20: =TRUNC(_xlfn.IFS(F20="SERV",I20*(1+$L$5/100),F20="SERV DIF",I20*(1+$L$6/100),F20="FORN",I20*(1+$L$7/100)),2) -> 0.49 | K20: 5760 | L20: 7056
A21: 13 | B21: 2.5 | C21: 4011353 | D21: SICRO | E21: PINTURA DE LIGAÇÃO COM EMULSÃO ASFÁLTICA RR-1C | F21: SERV | G21: M2 | H21: 13200 | I21: =VLOOKUP(A21,'CPU-SERV'!A:K,11,0) -> 0.27 | J21: =TRUNC(_xlfn.IFS(F21="SERV",I21*(1+$L$5/100),F21="SERV DIF",I21*(1+$L$6/100),F21="FORN",I21*(1+$L$7/100)),2) -> 0.33 | K21: 3564 | L21: 4356
A22: 14 | B22: 2.6 | C22: 4011463 | D22: SICRO | E22: EXECUÇÃO DE PAVIMENTO COM APLICAÇÃO DE CONCRETO ASFÁLTICO USINADO A QUENTE (CBUQ), CAMADA DE ROLAMENTO - EXCLUSIVE TRANSPORTE | F22: SERV | G22: T | H22: 1270 | I22: =VLOOKUP(A22,'CPU-SERV'!A:K,11,0) -> 176.77 | J22: =TRUNC(_xlfn.IFS(F22="SERV",I22*(1+$L$5/100),F22="SERV DIF",I22*(1+$L$6/100),F22="FORN",I22*(1+$L$7/100)),2) -> 220.37 | K22: 224497.9 | L22: 279869.9
A23: C | B23: 3 | E23: TRANSPORTE DE MATERIAIS | K23: =SUM(K24:K28) -> 349892 | L23: =SUM(L24:L28) -> 434708
A24: 15 | B24: 3.1 | C24: 5915321 | D24: SICRO | E24: TRANSPORTE COM CAMINHÃO BASCULANTE, EM RODOVIA PAVIMENTADA | F24: SERV | G24: TXKM | H24: 100000 | I24: =VLOOKUP(A24,'CPU-SERV'!A:K,11,0) -> 0.65 | J24: =TRUNC(_xlfn.IFS(F24="SERV",I24*(1+$L$5/100),F24="SERV DIF",I24*(1+$L$6/100),F24="FORN",I24*(1+$L$7/100)),2) -> 0.81 | K24: =TRUNC(H24*I24,2) -> 65000 | L24: =TRUNC(H24*J24,2) -> 81000
A25: 16 | B25: 3.2 | C25: 5915320 | D25: SICRO | E25: TRANSPORTE COM CAMINHÃO BASCULANTE, RODOVIA EM REVESTIMENTO PRIMÁRIO | F25: SERV | G25: TXKM | H25: 100000 | I25: =VLOOKUP(A25,'CPU-SERV'!A:K,11,0) -> 0.72 | J25: =TRUNC(_xlfn.IFS(F25="SERV",I25*(1+$L$5/100),F25="SERV DIF",I25*(1+$L$6/100),F25="FORN",I25*(1+$L$7/100)),2) -> 0.89 | K25: 72000 | L25: 89000
A26: 17 | B26: 3.3 | C26: 5914434 | D26: SICRO | E26: TRANSPORTE COM CAMINHÃO CARROCERIA 9T, EM VIA URBANA PREDOMINANTEMENTE PAVIMENTADA | F26: SERV | G26: TXKM | H26: 48000 | I26: =VLOOKUP(A26,'CPU-SERV'!A:K,11,0) -> 0.74 | J26: =TRUNC(_xlfn.IFS(F26="SERV",I26*(1+$L$5/100),F26="SERV DIF",I26*(1+$L$6/100),F26="FORN",I26*(1+$L$7/100)),2) -> 0.92 | K26: 35520 | L26: 44160
A27: 18 | B27: 3.4 | C27: 5914612 | D27: SICRO | E27: TRANSPORTE DE MISTURA BETUMINOSA A QUENTE COM CAMINHÃO CAÇAMBA TÉRMICA | F27: SERV | G27: TXKM | H27: 150000 | I27: =VLOOKUP(A27,'CPU-SERV'!A:K,11,0) -> 1.15 | J27: =TRUNC(_xlfn.IFS(F27="SERV",I27*(1+$L$5/100),F27="SERV DIF",I27*(1+$L$6/100),F27="FORN",I27*(1+$L$7/100)),2) -> 1.43 | K27: 172500 | L27: 214500
A28: 19 | B28: 3.5 | C28: 5914622 | D28: SICRO | E28: TRANSPORTE COM CAMINHÃO TANQUE DE TRANSPORTE DE MATERIAL ASFÁLTICO DE 30000 L, EM VIA URBANA PREDOMINANTEMENTE PAVIMENTADA | F28: SERV | G28: TXKM | H28: 2800 | I28: =VLOOKUP(A28,'CPU-SERV'!A:K,11,0) -> 1.74 | J28: =TRUNC(_xlfn.IFS(F28="SERV",I28*(1+$L$5/100),F28="SERV DIF",I28*(1+$L$6/100),F28="FORN",I28*(1+$L$7/100)),2) -> 2.16 | K28: 4872 | L28: 6048
A29: E | B29: 4 | E29: DRENAGEM E OBRAS COMPLEMENTARES | K29: =SUM(K30:K34) -> 370606.38 | L29: =SUM(L30:L34) -> 461977.78
A30: 20 | B30: 4.1 | C30: 94273 | D30: SINAPI | E30: ASSENTAMENTO DE GUIA (MEIO-FIO) PRÉ-MOLDADO DE CONCRETO - 100X15X13X30 CM (COMPRIMENTO X BASE INFERIOR X BASE SUPERIOR X ALTURA) - USO VIÁRIO | F30: SERV | G30: M | H30: 4000 | I30: =VLOOKUP(A30,'CPU-SERV'!A:K,11,0) -> 53.22 | J30: =TRUNC(_xlfn.IFS(F30="SERV",I30*(1+$L$5/100),F30="SERV DIF",I30*(1+$L$6/100),F30="FORN",I30*(1+$L$7/100)),2) -> 66.34 | K30: =TRUNC(H30*I30,2) -> 212880 | L30: =TRUNC(H30*J30,2) -> 265360
A31: 23 | B31: 4.2 | C31: 94287a | D31: SINAPI | E31: EXECUÇÃO DE SARJETA EM CONCRETO USINADO, MOLDADO IN LOCO - 30CM DE BASE X 5CM DE ALTURA | F31: SERV | G31: M | H31: 4000 | I31: =VLOOKUP(A31,'CPU-SERV'!A:K,11,0) -> 31.55 | J31: =TRUNC(_xlfn.IFS(F31="SERV",I31*(1+$L$5/100),F31="SERV DIF",I31*(1+$L$6/100),F31="FORN",I31*(1+$L$7/100)),2) -> 39.33 | K31: 126200 | L31: 157320
A32: 46 | B32: 4.3 | C32: 5213440 | D32: SICRO | E32: PLACA DE REGULAMENTAÇÃO EM AÇO, D=60CM - PELÍCULA RETRORREFLETIVA - FORNECIMENTO E INSTALAÇÃO, INCLUSIVE SUPORTE | F32: SERV | G32: UN. | H32: 13 | I32: =VLOOKUP(A32,'CPU-SERV'!A:K,11,0) -> 259.46 | J32: =TRUNC(_xlfn.IFS(F32="SERV",I32*(1+$L$5/100),F32="SERV DIF",I32*(1+$L$6/100),F32="FORN",I32*(1+$L$7/100)),2) -> 323.46 | K32: 3372.98 | L32: 4204.98
A33: 49 | B33: 4.4 | C33: 5213401 | D33: SICRO | E33: PINTURA DE EIXO VIÁRIO SOBRE ASFALTO COM TINTA RETRORREFLETIVA A BASE DE RESINA ACRÍLICA COM MICROESFERAS DE VIDRO, APLICAÇÃO MECÂNICA COM DEMARCADORA AUTOPROPELIDA | F33: SERV | G33: M2 | H33: 620 | I33: =VLOOKUP(A33,'CPU-SERV'!A:K,11,0) -> 29.17 | J33: =TRUNC(_xlfn.IFS(F33="SERV",I33*(1+$L$5/100),F33="SERV DIF",I33*(1+$L$6/100),F33="FORN",I33*(1+$L$7/100)),2) -> 36.36 | K33: 18085.4 | L33: 22543.2
A34: 51 | B34: 4.5 | C34: 5213405 | D34: SICRO | E34: PINTURA DE FAIXA DE PEDESTRE OU ZEBRADA TINTA RETRORREFLETIVA A BASE DE RESINA ACRÍLICA COM MICROESFERAS DE VIDRO, APLICAÇÃO MANUAL | F34: SERV | G34: M2 | H34: 240 | I34: =VLOOKUP(A34,'CPU-SERV'!A:K,11,0) -> 41.95 | J34: =TRUNC(_xlfn.IFS(F34="SERV",I34*(1+$L$5/100),F34="SERV DIF",I34*(1+$L$6/100),F34="FORN",I34*(1+$L$7/100)),2) -> 52.29 | K34: 10068 | L34: 12549.6
A35: F | B35: 5 | E35: FORNECIMENTOS - MATERIAL ASFÁLTICO (BDI DIFERENCIADO) | K35: =SUM(K36:K41) -> 451118.27 | L35: =SUM(L36:L41) -> 518785.03
A36: F1 | B36: 5.1 | C36: CPU.7 | D36: CODEVASF | E36: AQUISIÇÃO DE EMULSÃO ASFÁLTICA PARA IMPRIMAÇÃO (EAI) - EXCLUSIVE TRANSPORTE | F36: FORN | G36: T | H36: 19 | I36: =VLOOKUP(A36,'CPU-FORNEC'!A:J,9,0) -> 3189.94 | J36: =TRUNC(_xlfn.IFS(F36="SERV",I36*(1+$L$5/100),F36="SERV DIF",I36*(1+$L$6/100),F36="FORN",I36*(1+$L$7/100)),2) -> 3668.43 | K36: =TRUNC(H36*I36,2) -> 60608.86 | L36: =TRUNC(H36*J36,2) -> 69700.17
A37: F2 | B37: 5.2 | C37: CPU.8 | D37: CODEVASF | E37: TRANSPORTE DE EMULSÃO ASFÁLTICA PARA IMPRIMAÇÃO (EAI) | F37: SERV DIF | G37: T | H37: 19 | I37: =VLOOKUP(A37,'CPU-FORNEC'!A:J,9,0) -> 198.11 | J37: =TRUNC(_xlfn.IFS(F37="SERV",I37*(1+$L$5/100),F37="SERV DIF",I37*(1+$L$6/100),F37="FORN",I37*(1+$L$7/100)),2) -> 227.82 | K37: 3764.09 | L37: 4328.58
A38: F3 | B38: 5.3 | C38: CPU.9 | D38: CODEVASF | E38: AQUISIÇÃO DE EMULSAO ASFALTICA CATIONICA RR-1C - EXCLUSIVE TRANSPORTE | F38: FORN | G38: T | H38: 6 | I38: =VLOOKUP(A38,'CPU-FORNEC'!A:J,9,0) -> 3510.21 | J38: =TRUNC(_xlfn.IFS(F38="SERV",I38*(1+$L$5/100),F38="SERV DIF",I38*(1+$L$6/100),F38="FORN",I38*(1+$L$7/100)),2) -> 4036.74 | K38: 21061.26 | L38: 24220.44
A39: F4 | B39: 5.4 | C39: CPU.10 | D39: CODEVASF | E39: TRANSPORTE DE EMULSÃO ASFÁLTICA CATIONICA RR-1C | F39: SERV DIF | G39: T | H39: 6 | I39: =VLOOKUP(A39,'CPU-FORNEC'!A:J,9,0) -> 224.56 | J39: =TRUNC(_xlfn.IFS(F39="SERV",I39*(1+$L$5/100),F39="SERV DIF",I39*(1+$L$6/100),F39="FORN",I39*(1+$L$7/100)),2) -> 258.24 | K39: 1347.36 | L39: 1549.44
A40: F5 | B40: 5.5 | C40: CPU.11 | D40: CODEVASF | E40: AQUISIÇÃO DE CONCRETO ASFÁLTICO DE PETRÓLEO - CAP 50/70 - EXCLUSIVE TRANSPORTE | F40: FORN | G40: T | H40: 70 | I40: =VLOOKUP(A40,'CPU-FORNEC'!A:J,9,0) -> 4816.48 | J40: =TRUNC(_xlfn.IFS(F40="SERV",I40*(1+$L$5/100),F40="SERV DIF",I40*(1+$L$6/100),F40="FORN",I40*(1+$L$7/100)),2) -> 5538.95 | K40: 337153.6 | L40: 387726.5
A41: F6 | B41: 5.6 | C41: CPU.12 | D41: CODEVASF | E41: TRANSPORTE DE CONCRETO ASFÁLTICO DE PETRÓLEO - CAP 50/70 | F41: SERV DIF | G41: T | H41: 70 | I41: =VLOOKUP(A41,'CPU-FORNEC'!A:J,9,0) -> 388.33 | J41: =TRUNC(_xlfn.IFS(F41="SERV",I41*(1+$L$5/100),F41="SERV DIF",I41*(1+$L$6/100),F41="FORN",I41*(1+$L$7/100)),2) -> 446.57 | K41: 27183.1 | L41: 31259.9
B42: TOTAL GERAL DA OBRA COM BDI | K42: =SUM(K10,K16,K23,K29,K35) -> 1640228.19 | L42: =SUM(L10,L16,L23,L29,L35) -> 1999276.8

Sheet CPU-SERV
A1: 1 | B1: 1ª/GRD | K1: =J37 -> 8225.23
B2: OBRA: | C2: PAVIMENTAÇÃO ASFÁLTICA EM CBUQ - VIAS URBANAS DIVERSAS - DISTRITO DE CONCEIÇÃO DE TEIXEIRAS (AUGUSTO DE LIMA / MG)
B3: Custo Unitário de Referência | E3: Minas Gerais
E4: Janeiro/2025 | H4: Produção da equipe | I4: 1 | J4: =VLOOKUP(A1,ORÇAMENTO!$A$10:$L$42,7,1) -> GL
B5: CPU.1 | C5: MOBILIZAÇÃO E DESMOBILIZAÇÃO | I5: Valores em reais (R$)
B6: A - EQUIPAMENTOS | D6: Quantidade | E6: Utilização | G6: Custo Horário | J6: Custo
E7: Operativa | F7: Improdutiva | G7: Produtivo | H7: Improdutivo | J7: Horário Total
B8: E9687 | C8: Caminhão carroceria com capacidade de 5 t - 115 kW | D8: 8 | E8: 0.6 | F8: 0.4 | G8: 146.8808 | H8: 57.4231 | J8: =D8*(E8*G8+F8*H8) -> 888.78176
B9: E9575 | C9: Caminhão basculante com caçamba estanque com capacidade de 14 m³ - 210 kW | D9: 8 | E9: 1 | F9: 0 | G9: 309.8394 | H9: 90.4122 | J9: =D9*(E9*G9+F9*H9) -> 2478.7152
H10: Custo horário total de equipamentos | J10: =SUM(J8:J9) -> 3367.49696
B11: B - MÃO DE OBRA | D11: Quantidade | E11: Unidade | G11: Custo Horário | H11: Custo Horário Total
B12: P9824 | C12: Servente | D12: 8 | E12: h | G12: 21.3355 | J12: =D12*G12 -> 170.684
J13: =D13*G13 -> 0
D14: Custo horário total de mão de obra | J14: =SUM(J12:J13) -> 170.684
D15: Custo horário total de execução | J15: =J10+J14 -> 3538.18096
D16: Custo unitário de execução | J16: =J15/I4 -> 3538.18096
H17: Custo do FIC | J17: 0
H18: Custo do FIT | J18: 0
B19: C - MATERIAL | D19: Quantidade | E19: Unidade | G19: Preço Unitário | H19: Custo Unitário
B20: - | C20: 0 | E20: 0 | G20: 0 | J20: =D20*G20 -> 0
B21: - | C21: 0 | E21: 0 | G21: 0 | J21: =D21*G21 -> 0
D22: Custo unitário total de material | J22: =SUM(J20:J21) -> 0
B23: D - ATIVIDADES AUXILIARES | D23: Quantidade | E23: Unidade | G23: Custo Unitário | H23: Custo Unitário
B24: 5914640 | C24: Transporte com cavalo mecânico com semirreboque com capacidade de 30 t - rodovia pavimentada | D24: 8222.9 | E24: tkm | G24: 0.57 | J24: =D24*G24 -> 4687.053
B25: - | C25: 0 | D25: 0 | E25: 0 | G25: 0 | J25: =D25*G25 -> 0
D26: Custo total de atividades auxiliares | J26: =SUM(J24:J25) -> 4687.053
H27: Subtotal | J27: =J16+J22+J26+J17+J18 -> 8225.23396
B28: E - TEMPO FIXO | D28: Código | E28: Quantidade | F28: Unidade | H28: Custo Unitário | I28: Custo Unitário
B29: - | C29: 0 | D29: - | F29: 0 | H29: 0 | J29: =ROUNDDOWN(E29*H29,4) -> 0
B30: - | C30: 0 | D30: - | F30: 0 | H30: 0 | J30: =ROUNDDOWN(E30*H30,4) -> 0
D31: Custo unitário total de tempo fixo | J31: =SUM(J29:J30) -> 0
B32: F - MOMENTO DE TRANSPORTE | D32: Quantidade | E32: Unidade | F32: DMT | J32: Custo Unitário
F33: LN | G33: RP | H33: P
B34: - | C34: 0 | E34: tkm
B35: - | C35: 0 | E35: tkm
D36: Custo unitário total de transporte
F37: Custo unitário direto total | J37: =TRUNC(J27+J31,2) -> 8225.23
B38: Obs.
A40: =A1+1 -> 2 | B40: 1ª/GRD | K40: =J81 -> 124725.18
B41: OBRA: | C41: PAVIMENTAÇÃO ASFÁLTICA EM CBUQ - VIAS URBANAS DIVERSAS - DISTRITO DE CONCEIÇÃO DE TEIXEIRAS (AUGUSTO DE LIMA / MG)
B42: Custo Unitário de Referência | E42: Minas Gerais
E43: Janeiro/2025 | H43: Produção da equipe | I43: 0.1666666667 | J43: =VLOOKUP(A40,ORÇAMENTO!$A$10:$L$42,7,1) -> GL | K43: 6 MESES
B44: CPU.2 | C44: ADMINISTRAÇÃO LOCAL | I44: Valores em reais (R$)
B45: A - EQUIPAMENTOS | D45: Quantidade | E45: Utilização | G45: Custo Horário | J45: Custo
E46: Operativa | F46: Improdutiva | G46: Produtivo | H46: Improdutivo | J46: Horário Total
B47: - | C47: 0 | G47: 0 | H47: 0 | J47: =D47*(E47*G47+F47*H47) -> 0
B48: - | C48: 0 | G48: 0 | H48: 0 | J48: =D48*(E48*G48+F48*H48) -> 0
H49: Custo horário total de equipamentos | J49: =SUM(J47:J48) -> 0
B50: B - MÃO DE OBRA | D50: Quantidade | E50: Unidade | G50: Custo Horário | H50: Custo Horário Total
B51: P9812 | C51: Engenheiro | D51: 0.1985379169 | E51: mês | G51: 26055.5515 | J51: =D51*G51 -> 5173.014918
B52: P9840 | C52: Encarregado geral | D52: 1 | E52: mês | G52: 9322.82295 | J52: =D52*G52 -> 9322.82295
B53: P9876 | C53: Técnico de segurança do trabalho | D53: 0.5 | E53: mês | G53: 5491.87772 | J53: 2745.93886
B54: P9858 | C54: Laboratorista | D54: 0.5 | E54: mês | G54: 4464.08949 | J54: 2232.044745
B55: P9806 | C55: Auxiliar administrativo | D55: 0.25 | E55: mês | G55: 3130.43717 | J55: 782.6092925
D56: Custo horário total de mão de obra | J56: =SUM(J51:J55) -> 20256.43077
D57: Custo horário total de execução | J57: =J49+J56 -> 20256.43077
D58: Custo unitário de execução | J58: =J57/I43 -> 121538.5846
H59: Custo do FIC | J59: -
H60: Custo do FIT | J60: -
B61: C - MATERIAL | D61: Quantidade | E61: Unidade | G61: Preço Unitário | H61: Custo Unitário
B62: - | C62: 0 | D62: 0 | E62: 0 | G62: 0 | J62: =D62*G62 -> 0
B63: - | C63: 0 | D63: 0 | E63: 0 | G63: 0 | J63: 0
D64: Custo unitário total de material | J64: =SUM(J62:J63) -> 0
B65: D - ATIVIDADES AUXILIARES | D65: Quantidade | E65: Unidade | G65: Custo Unitário | H65: Custo Unitário
B66: 14250 | C66: Energia Elétrica | D66: 360 | E66: kwh | G66: 0.95 | J66: =D66*G66 -> 342
B67: 44480 | C67: Tarifa A - Água e Esgoto | D67: 24 | E67: m³ | G67: 17.97 | J67: =D67*G67 -> 431.28
B68: 5212560 | C68: Placa de advertência para sinalização de obras montada em suporte metálico móvel, lado 1,00 m - utilização de 600 ciclos - fornecimento, 01 implantação e 01 retirada diária | D68: 528 | E68: un.dia | G68: 3.89 | J68: =D68*G68 -> 2053.92
B69: Cotação | C69: Telefone | D69: 6 | E69: mês | G69: 59.9 | J69: =D69*G69 -> 359.4
D70: Custo total de atividades auxiliares | J70: =SUM(J66:J69) -> 3186.6
H71: Subtotal | J71: =J58+J64+J70 -> 124725.1846
B72: E - TEMPO FIXO | D72: Código | E72: Quantidade | F72: Unidade | H72: Custo Unitário | I72: Custo Unitário
B73: - | C73: 0 | D73: - | E73: 0 | F73: t | H73: 0 | J73: =ROUNDDOWN(E73*H73,4) -> 0
B74: - | C74: 0 | D74: - | E74: 0 | F74: t | H74: 0 | J74: =ROUNDDOWN(E74*H74,4) -> 0
D75: Custo unitário total de tempo fixo | J75: =SUM(J73:J74) -> 0
B76: F - MOMENTO DE TRANSPORTE | D76: Quantidade | E76: Unidade | F76: DMT | J76: Custo Unitário
F77: LN | G77: RP | H77: P
B78: - | C78: 0 | E78: tkm
B79: - | C79: 0 | E79: tkm
D80: Custo unitário total de transporte
F81: Custo unitário direto total | J81: =TRUNC(J71+J75,2) -> 124725.18
B82: Obs.
A84: =A40+1 -> 3 | B84: 1ª/GRD | K84: =J120 -> 7137.55
B85: OBRA: | C85: PAVIMENTAÇÃO ASFÁLTICA EM CBUQ - VIAS URBANAS DIVERSAS - DISTRITO DE CONCEIÇÃO DE TEIXEIRAS (AUGUSTO DE LIMA / MG)
B86: Custo Unitário de Referência | E86: Minas Gerais
E87: Janeiro/2025 | H87: Produção da equipe | I87: 1 | J87: =VLOOKUP(A84,ORÇAMENTO!$A$10:$L$42,7,1) -> GL
B88: CPU.3 | C88: CANTEIRO DE OBRAS | I88: Valores em reais (R$)
B89: A - EQUIPAMENTOS | D89: Quantidade | E89: Utilização | G89: Custo Horário | J89: Custo
E90: Operativa | F90: Improdutiva | G90: Produtivo | H90: Improdutivo | J90: Horário Total
B91: - | C91: 0 | G91: 0 | H91: 0 | J91: =D91*(E91*G91+F91*H91) -> 0
B92: - | C92: 0 | G92: 0 | H92: 0 | J92: =D92*(E92*G92+F92*H92) -> 0
H93: Custo horário total de equipamentos | J93: =SUM(J91:J92) -> 0
B94: B - MÃO DE OBRA | D94: Quantidade | E94: Unidade | G94: Custo Horário | H94: Custo Horário Total
B95: P9824 | C95: Servente | D95: 8 | E95: h | G95: 21.3355 | J95: =D95*G95 -> 170.684
B96: P9808 | C96: Carpinteiro | D96: 8 | E96: h | G96: 26.4529 | J96: =D96*G96 -> 211.6232
D97: Custo horário total de mão de obra | J97: =SUM(J95:J96) -> 382.3072
D98: Custo horário total de execução | J98: =J93+J97 -> 382.3072
D99: Custo unitário de execução | J99: =J98/I87 -> 382.3072
H100: Custo do FIC | J100: -
H101: Custo do FIT | J101: -
B102: C - MATERIAL | D102: Quantidade | E102: Unidade | G102: Preço Unitário | H102: Custo Unitário
B103: M0053 | C103: Tela plástica em polipropileno na cor laranja para tapume - L = 1,2 m | D103: 60 | E103: m | G103: 1.775 | J103: =D103*G103 -> 106.5
B104: - | C104: 0 | D104: 0 | E104: 0 | G104: 0 | J104: =D104*G104 -> 0
D105: Custo unitário total de material | J105: =SUM(J103:J104) -> 106.5
B106: D - ATIVIDADES AUXILIARES | D106: Quantidade | E106: Unidade | G106: Custo Unitário | H106: Custo Unitário
B107: 10775 | C107: Locação de container 2,30 X 6,00 m, alt. 2,50 m, com 1 sanitário, para escritório, completo, sem divisórias internas | D107: 3 | E107: mês | G107: 985 | J107: =D107*G107 -> 2955
B108: 10779 | C108: Locação de container 2,30 X 4,30 m, alt. 2,50 M, p/ sanitário, c/ 5 bacias, 1 lavatório e 4 mictórios | D108: 3 | E108: mês | G108: 1231.25 | J108: =D108*G108 -> 3693.75
D109: Custo total de atividades auxiliares | J109: =SUM(J107:J108) -> 6648.75
H110: Subtotal | J110: =J99+J105+J109 -> 7137.5572
B111: E - TEMPO FIXO | D111: Código | E111: Quantidade | F111: Unidade | H111: Custo Unitário | I111: Custo Unitário
B112: - | C112: 0 | D112: - | E112: 0 | F112: t | H112: 0 | J112: =ROUNDDOWN(E112*H112,4) -> 0
B113: - | C113: 0 | D113: - | E113: 0 | F113: t | H113: 0 | J113: =ROUNDDOWN(E113*H113,4) -> 0
D114: Custo unitário total de tempo fixo | J114: =SUM(J112:J113) -> 0
B115: F - MOMENTO DE TRANSPORTE | D115: Quantidade | E115: Unidade | F115: DMT | J115: Custo Unitário
F116: LN | G116: RP | H116: P
B117: - | C117: 0 | D117: 0 | E117: tkm
B118: - | C118: 0 | D118: 0 | E118: tkm
D119: Custo unitário total de transporte
F120: Custo unitário direto total | J120: =TRUNC(J110+J114,2) -> 7137.55
B121: Obs.
A123: =A84+1 -> 4 | B123: 1ª/GRD | K123: =J161 -> 351.42
B124: OBRA: | C124: PAVIMENTAÇÃO ASFÁLTICA EM CBUQ - VIAS URBANAS DIVERSAS - DISTRITO DE CONCEIÇÃO DE TEIXEIRAS (AUGUSTO DE LIMA / MG)
B125: Custo Unitário de Referência | E125: Minas Gerais
E126: Janeiro/2025 | H126: Produção da equipe | I126: 1 | J126: =VLOOKUP(A123,ORÇAMENTO!$A$10:$L$42,7,1) -> M2
B127: 103689 | C127: PLACA DE OBRA EM CHAPA DE AÇO GALVANIZADO | I127: Valores em reais (R$)
B128: A - EQUIPAMENTOS | D128: Quantidade | E128: Utilização | G128: Custo Horário | J128: Custo
E129: Operativa | F129: Improdutiva | G129: Produtivo | H129: Improdutivo | J129: Horário Total
B130: - | C130: 0 | G130: 0 | H130: 0 | J130: =D130*(E130*G130+F130*H130) -> 0
B131: - | C131: 0 | G131: 0 | H131: 0 | J131: =D131*(E131*G131+F131*H131) -> 0
H132: Custo horário total de equipamentos | J132: =SUM(J130:J131) -> 0
B133: B - MÃO DE OBRA | D133: Quantidade | E133: Unidade | G133: Custo Horário | H133: Custo Horário Total
B134: P9824 | C134: Servente | D134: 1.1186 | E134: h | G134: 21.3355 | J134: =D134*G134 -> 23.8658903
B135: P9808 | C135: Carpinteiro | D135: 0.3729 | E135: h | G135: 26.4529 | J135: =D135*G135 -> 9.86428641
D136: Custo horário total de mão de obra | J136: =SUM(J134:J135) -> 33.73017671
D137: Custo horário total de execução | J137: =J132+J136 -> 33.73017671
D138: Custo unitário de execução | J138: =J137/I126 -> 33.73017671
H139: Custo do FIC | J139: -
H140: Custo do FIT | J140: -
B141: C - MATERIAL | D141: Quantidade | E141: Unidade | G141: Preço Unitário | H141: Custo Unitário
B142: M1358 | C142: Sarrafo em madeira de terceira - E = 2,5 cm e L = 5 cm | D142: 6.4166 | E142: m | G142: 1.9666 | J142: =D142*G142 -> 12.61888556
B143: M1205 | C143: Prego de ferro | D143: 0.0245 | E143: kg | G143: 16.5445 | J143: =D143*G143 -> 0.40534025
B144: M0998 | C144: Madeira estrutural de eucalipto | D144: 0.022608 | E144: m³ | G144: 2418.0391 | J144: =D144*G144 -> 54.66702797
B145: 4813 | C145: Placa de obra (para construção civil) em chapa galvanizada *N. 22*, adesivada, de *2,4 X 1,2* m (sem postes para fixação) | D145: 1 | E145: m² | G145: 250 | J145: 250
D146: Custo unitário total de material | J146: =SUM(J142:J145) -> 317.6912538
B147: D - ATIVIDADES AUXILIARES | D147: Quantidade | E147: Unidade | G147: Custo Unitário | H147: Custo Unitário
B148: - | C148: 0 | D148: 0 | E148: 0 | G148: 0 | J148: =D148*G148 -> 0
B149: - | C149: 0 | D149: 0 | E149: 0 | G149: 0 | J149: =D149*G149 -> 0
D150: Custo total de atividades auxiliares | J150: =SUM(J148:J149) -> 0
H151: Subtotal | J151: =J138+J146+J150 -> 351.4214305
B152: E - TEMPO FIXO | D152: Código | E152: Quantidade | F152: Unidade | H152: Custo Unitário | I152: Custo Unitário
B153: - | C153: 0 | D153: - | E153: 0 | F153: t | H153: 0 | J153: =ROUNDDOWN(E153*H153,4) -> 0
B154: - | C154: 0 | D154: - | E154: 0 | F154: t | H154: 0 | J154: =ROUNDDOWN(E154*H154,4) -> 0
D155: Custo unitário total de tempo fixo | J155: =SUM(J153:J154) -> 0
B156: F - MOMENTO DE TRANSPORTE | D156: Quantidade | E156: Unidade | F156: DMT | J156: Custo Unitário
F157: LN | G157: RP | H157: P
B158: - | C158: 0 | D158: 0 | E158: tkm
B159: - | C159: 0 | D159: 0 | E159: tkm
D160: Custo unitário total de transporte
F161: Custo unitário direto total | J161: =TRUNC(J151+J155,2) -> 351.42
B162: Obs.
A164: 6 | B164: 1ª/GRD | K164: =J202 -> 0.49
B165: OBRA: | C165: PAVIMENTAÇÃO ASFÁLTICA EM CBUQ - VIAS URBANAS DIVERSAS - DISTRITO DE CONCEIÇÃO DE TEIXEIRAS (AUGUSTO DE LIMA / MG)
B166: Custo Unitário de Referência | E166: Minas Gerais
E167: Janeiro/2025 | H167: Produção da equipe | I167: 1 | J167: =VLOOKUP(A164,ORÇAMENTO!$A$10:$L$42,7,1) -> M2
B168: 78472 | C168: SERVIÇOS TOPOGRÁFICOS PARA PAVIMENTAÇÃO, INCLUSIVE LEVANTAMENTO PLANIALTIMÉTRICO CADASTRAL, GERAÇÃO DE NOTAS DE SERVIÇO, SEÇÕES TRANSVERSAIS E GREIDE, ESTAQUEAMENTO E ACOMPANHAMENTO EXECUTIVO | I168: Valores em reais (R$)
B169: A - EQUIPAMENTOS | D169: Quantidade | E169: Utilização | G169: Custo Horário | J169: Custo
E170: Operativa | F170: Improdutiva | G170: Produtivo | H170: Improdutivo | J170: Horário Total
B171: 92145 | C171: Caminhonete cabine simples com motor 1.6 flex, câmbio manual, potência 101/104 cv, 2 portas | D171: 0.0005 | E171: 1 | F171: 0 | G171: 76.5 | H171: 0 | J171: =D171*(E171*G171+F171*H171) -> 0.03825
B172: - | C172: 0 | D172: 0 | E172: 1 | F172: 0 | G172: 0 | H172: 0 | J172: =D172*(E172*G172+F172*H172) -> 0
H173: Custo horário total de equipamentos | J173: =SUM(J171:J172) -> 0.03825
B174: B - MÃO DE OBRA | D174: Quantidade | E174: Unidade | G174: Custo Horário | H174: Custo Horário Total
B175: P9949 | C175: Topógrafo | D175: 1.590909091e-05 | E175: mês | G175: 6816.9716 | H175: 28.40404833 | J175: =D175*G175 -> 0.1084518209
B176: P9950 | C176: Auxiliar de topografia | D176: 1.590909091e-05 | E176: mês | G176: 6157.8463 | H176: 22.80683815 | J176: =D176*G176 -> 0.09796573659
B177: P9824 | C177: Servente | D177: 0.0075 | E177: h | G177: 21.3355 | H177: 0.08889791667 | J177: =D177*G177 -> 0.16001625
B178: P9848 | C178: Desenhista | D178: 9.090909091e-06 | E178: mês | G178: 10307.7486 | H178: 38.17684667 | J178: =D178*G178 -> 0.09370680545
D179: Custo horário total de mão de obra | J179: =SUM(J175:J178) -> 0.460140613
D180: Custo horário total de execução | J180: =J173+J179 -> 0.498390613
D181: Custo unitário de execução | J181: =J180/I167 -> 0.498390613
H182: Custo do FIC | J182: -
H183: Custo do FIT | J183: -
B184: C - MATERIAL | D184: Quantidade | E184: Unidade | G184: Preço Unitário | H184: Custo Unitário
B185: - | C185: 0 | D185: 0 | E185: 0 | G185: 0 | J185: =D185*G185 -> 0
B186: - | C186: 0 | D186: 0 | E186: 0 | G186: 0 | J186: 0
D187: Custo unitário total de material | J187: =SUM(J185:J186) -> 0
B188: D - ATIVIDADES AUXILIARES | D188: Quantidade | E188: Unidade | G188: Custo Unitário | H188: Custo Unitário
B189: - | C189: 0 | D189: 0 | E189: 0 | G189: 0 | J189: =D189*G189 -> 0
B190: - | C190: 0 | D190: 0 | E190: 0 | G190: 0 | J190: =D190*G190 -> 0
D191: Custo total de atividades auxiliares | J191: =SUM(J189:J190) -> 0
H192: Subtotal | J192: =J181+J187+J191 -> 0.498390613
B193: E - TEMPO FIXO | D193: Código | E193: Quantidade | F193: Unidade | H193: Custo Unitário | I193: Custo Unitário
B194: - | C194: 0 | D194: - | E194: 0 | F194: t | H194: 0 | J194: =ROUNDDOWN(E194*H194,4) -> 0
B195: - | C195: 0 | D195: - | E195: 0 | F195: t | H195: 0 | J195: =ROUNDDOWN(E195*H195,4) -> 0
D196: Custo unitário total de tempo fixo | J196: =SUM(J194:J195) -> 0
B197: F - MOMENTO DE TRANSPORTE | D197: Quantidade | E197: Unidade | F197: DMT | J197: Custo Unitário
F198: LN | G198: RP | H198: P
B199: - | C199: 0 | D199: 0 | E199: tkm
B200: - | C200: 0 | D200: 0 | E200: tkm
D201: Custo unitário total de transporte
F202: Custo unitário direto total | J202: =TRUNC(J192+J196,2) -> 0.49
B203: Obs.
A205: =A164+1 -> 7 | B205: 1ª/GRD | K205: =J241 -> 6.74
... 1484 more rows

Sheet CPU-FORNEC
A1: 1 | B1: CODEVASF | E1: COMPOSIÇÃO DE PREÇO UNITÁRIO | I1: =H24 -> 0 | J1: =H26 -> 0 | K1: BDI CALCULADO: | M1: =ORÇAMENTO!L5 -> 24.67
B2: OBRA: | C2: PAVIMENTAÇÃO ASFÁLTICA EM CBUQ - VIAS URBANAS DIVERSAS - DISTRITO DE CONCEIÇÃO DE TEIXEIRAS (AUGUSTO DE LIMA / MG) | G2: DATA: | H2: =ORÇAMENTO!C6 -> ABRIL / 2025 | K2: BDI DIFERENCIADO: | M2: ='BDI FORN'!D31/100 -> 0.15
B3: SERVIÇO: | C3: CPU.1 | E3: Referência: | F3: CODEVASF | G3: UNIDADE: | H3: =VLOOKUP(A1,ORÇAMENTO!A11:L30,5) -> MOBILIZAÇÃO E DESMOBILIZAÇÃO
B5: TIPO ITEM | C5: CODIGO ITEM | D5: DESCRIÇÃO ITEM | E5: UNIDADE ITEM | F5: COEFICIENTE | G5: PRECO UNITARIO | H5: CUSTO TOTAL | J5: distancia = | K5: 90 | L5: B.DESPACHO
B6: EQUIPAMENTOS | J6: Pá carregadeira | M6: 10.1 | N6: ton
C7: E9001 | D7: E9001 | E7: E9001 | G7: E9001
B10: MÃO DE OBRA
B14: MATERIAIS
H17: =ROUNDDOWN(F17*G17,2) -> 0 | J17: Motoniveladora | M17: 12.47 | N17: ton
B18: ATIVIDADES AUXILIARES | J18: Trator de pneus | M18: 2.8 | N18: ton
H19: =ROUNDDOWN(F19*G19,2) -> 0
H20: 0
H21: 0
H22: =ROUNDDOWN(F22*G22,2) -> 0 | J22: Rolo Compactador | M22: 15.33 | N22: ton
B23: PRODUÇÃO DA EQUIPE | E23: 1 | F23: CUSTO | H23: =SUM(H6:H22) -> 0 | J23: Grade de disco | M23: 1 | N23: ton
B24: TOTAL | H24: =H23/E23 -> 0 | I24: OK | J24: RETROESCAVADEIRA | M24: 6.67 | N24: ton
B25: BDI % | H25: =1+$M$1 -> 25.67
B26: TOTAL DO SERVIÇO - R$ | H26: =ROUND(H24*H25,2) -> 0
A28: F1 | B28: CODEVASF | E28: COMPOSIÇÃO DE PREÇO UNITÁRIO | I28: =H35 -> 3189.94 | J28: =H37 -> 3668.43
B29: OBRA: | C29: PAVIMENTAÇÃO ASFÁLTICA EM CBUQ - VIAS URBANAS DIVERSAS - DISTRITO DE CONCEIÇÃO DE TEIXEIRAS (AUGUSTO DE LIMA / MG) | G29: DATA: | H29: =$H$2 -> ABRIL / 2025
B30: SERVIÇO: | C30: AQUISIÇÃO DE EMULSÃO ASFÁLTICA PARA IMPRIMAÇÃO (EAI) - EXCLUSIVE TRANSPORTE | E30: Referência: | F30: CPU.7 | G30: UNIDADE: | H30: =VLOOKUP(A28,ORÇAMENTO!$A$11:$L$49,7) -> T
B32: TIPO ITEM | C32: CODIGO ITEM | D32: DESCRIÇÃO ITEM | E32: UNIDADE ITEM | F32: COEFICIENTE | G32: PRECO UNITARIO | H32: CUSTO TOTAL
B33: INSUMO | C33: ANP | D33: EMULSÃO ASFÁLTICA PARA SERVIÇO DE IMPRIMAÇÃO (MEMÓRIA EM ANEXO) | E33: T | F33: 1 | G33: 3189.946004 | H33: =ROUNDDOWN(F33*G33,2) -> 3189.94
B34: PRODUÇÃO DA EQUIPE | E34: 1 | F34: CUSTO | H34: =SUM(H33:H33) -> 3189.94
B35: TOTAL | H35: =H34/E34 -> 3189.94
B36: BDI % | H36: =1+$M$2 -> 1.15
B37: TOTAL DO SERVIÇO - R$ | H37: =ROUND(H35*H36,2) -> 3668.43 | I37: OK
A39: F2 | B39: CODEVASF | E39: COMPOSIÇÃO DE PREÇO UNITÁRIO | I39: =H46 -> 198.11 | J39: =H48 -> 227.83
B40: OBRA: | C40: PAVIMENTAÇÃO ASFÁLTICA EM CBUQ - VIAS URBANAS DIVERSAS - DISTRITO DE CONCEIÇÃO DE TEIXEIRAS (AUGUSTO DE LIMA / MG) | G40: DATA: | H40: =$H$2 -> ABRIL / 2025
B41: SERVIÇO: | C41: TRANSPORTE DE EMULSÃO ASFÁLTICA PARA IMPRIMAÇÃO (EAI) | E41: Referência: | F41: CPU.8 | G41: UNIDADE: | H41: =VLOOKUP(A39,ORÇAMENTO!$A$11:$L$49,7) -> T
B43: TIPO ITEM | C43: CODIGO ITEM | D43: DESCRIÇÃO ITEM | E43: UNIDADE ITEM | F43: COEFICIENTE | G43: PRECO UNITARIO | H43: CUSTO TOTAL
B44: INSUMO | C44: - | D44: TRANSPORTE DE EMULSÃO ASFÁLTICA PARA IMPRIMAÇÃO (EAI), INCLUINDO CUSTO TOTAL DO TRANSPORTE (COMBUSTÍVEL, PEDÁGIOS, ETC.) E ICMS - MEMÓRIA ANEXA | E44: T | F44: 1 | G44: 198.1121053 | H44: =ROUNDDOWN(F44*G44,2) -> 198.11
B45: PRODUÇÃO DA EQUIPE | E45: 1 | F45: CUSTO | H45: =SUM(H44:H44) -> 198.11
B46: TOTAL | H46: =H45/E45 -> 198.11
B47: BDI % | H47: =1+$M$2 -> 1.15
B48: TOTAL DO SERVIÇO - R$ | H48: =ROUND(H46*H47,2) -> 227.83 | I48: OK
A50: F3 | B50: CODEVASF | E50: COMPOSIÇÃO DE PREÇO UNITÁRIO | I50: =H57 -> 3510.21 | J50: =H59 -> 4036.74
B51: OBRA: | C51: PAVIMENTAÇÃO ASFÁLTICA EM CBUQ - VIAS URBANAS DIVERSAS - DISTRITO DE CONCEIÇÃO DE TEIXEIRAS (AUGUSTO DE LIMA / MG) | G51: DATA: | H51: =$H$2 -> ABRIL / 2025
B52: SERVIÇO: | C52: AQUISIÇÃO DE EMULSAO ASFALTICA CATIONICA RR-1C - EXCLUSIVE TRANSPORTE | E52: Referência: | F52: CPU.9 | G52: UNIDADE: | H52: =VLOOKUP(A50,ORÇAMENTO!$A$11:$L$49,7) -> T
B54: TIPO ITEM | C54: CODIGO ITEM | D54: DESCRIÇÃO ITEM | E54: UNIDADE ITEM | F54: COEFICIENTE | G54: PRECO UNITARIO | H54: CUSTO TOTAL
B55: INSUMO | C55: ANP | D55: EMULSÃO ASFÁLTICA CATIÔNICA RR-1C(MEMÓRIA EM ANEXO) | E55: T | F55: 1 | G55: 3510.212925 | H55: =ROUNDDOWN(F55*G55,2) -> 3510.21
B56: PRODUÇÃO DA EQUIPE | E56: 1 | F56: CUSTO | H56: =SUM(H55:H55) -> 3510.21
B57: TOTAL | H57: =H56/E56 -> 3510.21 | I57: OK
B58: BDI % | H58: =1+$M$2 -> 1.15
B59: TOTAL DO SERVIÇO - R$ | H59: =ROUND(H57*H58,2) -> 4036.74
A61: F4 | B61: CODEVASF | E61: COMPOSIÇÃO DE PREÇO UNITÁRIO | I61: =H68 -> 224.56 | J61: =H70 -> 258.24
B62: OBRA: | C62: PAVIMENTAÇÃO ASFÁLTICA EM CBUQ - VIAS URBANAS DIVERSAS - DISTRITO DE CONCEIÇÃO DE TEIXEIRAS (AUGUSTO DE LIMA / MG) | G62: DATA: | H62: =$H$2 -> ABRIL / 2025
B63: SERVIÇO: | C63: TRANSPORTE DE EMULSÃO ASFÁLTICA CATIONICA RR-1C | E63: Referência: | F63: CPU.10 | G63: UNIDADE: | H63: =VLOOKUP(A61,ORÇAMENTO!$A$11:$L$49,7) -> T
B65: TIPO ITEM | C65: CODIGO ITEM | D65: DESCRIÇÃO ITEM | E65: UNIDADE ITEM | F65: COEFICIENTE | G65: PRECO UNITARIO | H65: CUSTO TOTAL
B66: INSUMO | C66: - | D66: TRANSPORTE DE EMULSÃO ASFÁLTICA CATIONICA TIPO RR-1C, INCLUINDO CUSTO TOTAL DO TRANSPORTE (COMBUSTÍVEL, PEDÁGIOS, ETC.) E ICMS - MEMÓRIA ANEXA | E66: T | F66: 1 | G66: 224.56 | H66: =ROUNDDOWN(F66*G66,2) -> 224.56
B67: PRODUÇÃO DA EQUIPE | E67: 1 | F67: CUSTO | H67: =SUM(H66:H66) -> 224.56
B68: TOTAL | H68: =H67/E67 -> 224.56 | I68: OK
B69: BDI % | H69: =1+$M$2 -> 1.15
B70: TOTAL DO SERVIÇO - R$ | H70: =ROUND(H68*H69,2) -> 258.24
A72: F5 | B72: CODEVASF | E72: COMPOSIÇÃO DE PREÇO UNITÁRIO | I72: =H79 -> 4816.48 | J72: =H81 -> 5538.95
B73: OBRA: | C73: PAVIMENTAÇÃO ASFÁLTICA EM CBUQ - VIAS URBANAS DIVERSAS - DISTRITO DE CONCEIÇÃO DE TEIXEIRAS (AUGUSTO DE LIMA / MG) | G73: DATA: | H73: =$H$2 -> ABRIL / 2025
B74: SERVIÇO: | C74: AQUISIÇÃO DE CONCRETO ASFÁLTICO DE PETRÓLEO - CAP 50/70 - EXCLUSIVE TRANSPORTE | E74: Referência: | F74: CPU.11 | G74: UNIDADE: | H74: =VLOOKUP(A72,ORÇAMENTO!$A$11:$L$49,7) -> T
B76: TIPO ITEM | C76: CODIGO ITEM | D76: DESCRIÇÃO ITEM | E76: UNIDADE ITEM | F76: COEFICIENTE | G76: PRECO UNITARIO | H76: CUSTO TOTAL
B77: INSUMO | C77: 1518 | D77: CIMENTOS ASFÁLTICO DE PETRÓLEO TIPO CAP 50/70 (MEMÓRIA EM ANEXO) | E77: T | F77: 1 | G77: 4816.487225 | H77: =ROUNDDOWN(F77*G77,2) -> 4816.48
B78: PRODUÇÃO DA EQUIPE | E78: 1 | F78: CUSTO | H78: =SUM(H77:H77) -> 4816.48
B79: TOTAL | H79: =H78/E78 -> 4816.48
B80: BDI % | H80: =1+$M$2 -> 1.15
B81: TOTAL DO SERVIÇO - R$ | H81: =ROUND(H79*H80,2) -> 5538.95
A83: F6 | B83: CODEVASF | E83: COMPOSIÇÃO DE PREÇO UNITÁRIO | I83: =H90 -> 388.33 | J83: =H92 -> 446.58
B84: OBRA: | C84: PAVIMENTAÇÃO ASFÁLTICA EM CBUQ - VIAS URBANAS DIVERSAS - DISTRITO DE CONCEIÇÃO DE TEIXEIRAS (AUGUSTO DE LIMA / MG) | G84: DATA: | H84: =$H$2 -> ABRIL / 2025
B85: SERVIÇO: | C85: TRANSPORTE DE CONCRETO ASFÁLTICO DE PETRÓLEO - CAP 50/70 | E85: Referência: | F85: CPU.12 | G85: UNIDADE: | H85: =VLOOKUP(A83,ORÇAMENTO!$A$11:$L$49,7) -> T
B87: TIPO ITEM | C87: CODIGO ITEM | D87: DESCRIÇÃO ITEM | E87: UNIDADE ITEM | F87: COEFICIENTE | G87: PRECO UNITARIO | H87: CUSTO TOTAL
B88: INSUMO | C88: - | D88: TRANSPORTE DE CIMENTO ASFÁLTICO DE PETRÓLEO TIPO CAP 50-70, INCLUINDO CUSTO TOTAL DO TRANSPORTE (COMBUSTÍVEL, PEDÁGIOS, ETC.) E ICMS - MEMÓRIA ANEXA | E88: T | F88: 1 | G88: 388.3357143 | H88: =ROUNDDOWN(F88*G88,2) -> 388.33
B89: PRODUÇÃO DA EQUIPE | E89: 1 | F89: CUSTO | H89: =SUM(H88:H88) -> 388.33
B90: TOTAL | H90: =H89/E89 -> 388.33
B91: BDI % | H91: =1+$M$2 -> 1.15
B92: TOTAL DO SERVIÇO - R$ | H92: =ROUND(H90*H91,2) -> 446.58

Sheet BDI SERV
B1: DETALHAMENTO DO BDI - SERVIÇOS
B4: Item | C4: Descrição dos Serviços | D4: % - PV | E4: % - CD
B6: 1 | C6: ADMINISTRAÇÃO CENTRAL | E6: =SUM(E7:E9) -> 4.01
B7: 1.1 | C7: ESCRITÓRIO CENTRAL | E7: 4.01
B8: 1.2 | C8: VIAGENS
B9: 1.3 | C9: OUTROS
B11: 2 | C11: IMPOSTOS E TAXAS | D11: =SUM(D12:D15) -> 8.65 | E11: =SUM(E12:E15) -> 0
B12: 2.1 | C12: ISS - Proposta | D12: =D34*100 -> 5
B13: 2.2 | C13: PIS | D13: 0.65
B14: 2.3 | C14: Cofins | D14: 3
B15: 2.4 | C15: Contribuição Previdenciaria (CPRB)
B17: 3 | C17: TAXA DE RISCO | E17: =SUM(E18:E20) -> 0.96
B18: 3.1 | C18: SEGURO | E18: 0.2
B19: 3.2 | C19: RISCO | E19: 0.56
B20: 3.3 | C20: GARANTIA | E20: 0.2
B22: 4 | C22: DESPESAS FINANCEIRAS | E22: 1.11
B24: 5 | C24: LUCRO | E24: 7.3
B26: BDI APRESENTADO: | E26: =IF($D$41=$C$43,$D$43,IF($D$41=$C$44,$D$44,IF($D$41=$C$44,$D$44,IF($D$41=$C$45,$D$45,0)))) -> 24.67
C28: Legislação Municipal: | D28: Lei Complementar nº 30/2019
C29: Município: | D29: Augusto de Lima
C30: Alíquota ISSQN: | D30: 0.05 | E30: Município
C31: Base de Cálculo: | D31: 1 | E31: Art.252
C32: Valor Serviço: | D32: 1189110.05
C33: Dedução - Material (estimado): | D33: 0 | E33: =D33/D32 -> 0
C34: ISSQN BDI: | D34: =IF(D32="",0,ROUND(IF(D31=D49,((1-(D33/D32))*D30),D30*D31),4)) -> 0.05 | E34: (*)
A36: Acórdão nº 2.622/2013 - TCU Plenário
A37: BDI = ARRED((((((1+(AC+TR)/100)*(1+DF/100)*(1+L/100))/(1-IMP/100))-1)*100);2)
B39: (*) É obrigação da licitante a verificação da Legislação Tributária vigente no município, bem como o cálculo dos valores totais de serviços e materiais estimados, para apresentação de sua proposta.
C41: Forma de Cálculo do BDI: | D41: BDI - Acórdão nº 2.622/2013 - TCU
C43: BDI - Digitado | D43: =ROUND(E6+E11+E17+E22+E24,2) -> 13.38
C44: BDI - Calculado | D44: =ROUND((((1+(E6/100+E22/100+E17/100))/(1-(D11/100+E24/100)))-1)*100,2) -> 26.21
C45: BDI - Acórdão nº 2.622/2013 - TCU | D45: =ROUND((((((1+(E6+E17)/100)*(1+E22/100)*(1+E24/100))/(1-D11/100))-1)*100),2) -> 24.67
D49: Dedução - Material | E49: Município
D50: 0.1 | E50: Simples Nacional
D51: 0.2 | E51: Municípios Indefinidos
D52: 0.3
D53: 0.4
D54: 0.5
D55: 0.6
D56: 0.7
D57: 0.8
D58: 0.9
D59: 1
D60: =E31 -> Art.252

Sheet BDI FORN
B1: DETALHAMENTO DO BDI - FORNECIMENTO (MATERIAL ASFÁLTICO)
B4: Item | C4: Descrição dos Serviços | D4: % | E4: %
D5: PV | E5: CD
B7: 1 | C7: ADMINISTRAÇÃO CENTRAL | E7: 3.45
B8: 1.1 | C8: ESCRITÓRIO CENTRAL
B9: 1.2 | C9: VIAGENS
B10: 1.3 | C10: OUTROS
B12: 2 | C12: IMPOSTOS E TAXAS | D12: =SUM(D13:D16) -> 3.65 | E12: =SUM(E13:E16) -> 4.56
B13: 2.1 | C13: ISS (*) | E13: =ROUND(D13*1.2515,2) -> 0
B14: 2.2 | C14: PIS | D14: 0.65 | E14: =ROUND(D14*1.2515,2) -> 0.81
B15: 2.3 | C15: Cofins | D15: 3 | E15: =ROUND(D15*1.2515,2) -> 3.75
B16: 2.4 | C16: CONTRIBUIÇÃO PREVIDENCIÁRIA SOBRE A RENDA BRUTA | D16: 0 | E16: =ROUND(D16*1.2515,2) -> 0
B18: 3 | C18: TAXA DE RISCO | E18: =SUM(E19:E22) -> 1.08
B19: 3.1 | C19: SEGURO | E19: 0.24
B20: 3.2 | C20: RISCO | E20: 0.6
B21: 3.3 | C21: GARANTIA | E21: 0.24
B23: 4 | C23: DESPESAS FINANCEIRAS | E23: 0.85
B25: 5 | C25: LUCRO | E25: 5.11
C27: BDI - CALCULADO | E27: =ROUND((((1+(E7+E18)/100)*(1+E23/100)*(1+E25/100)/(1-D12/100)-1)*100),2) -> 15
A29: BDI = ((1+((AC+S+R+G)/100))x(1+DF/100)x(1+L/100)/(1-I/100)-1)*100
B31: BDI (CALCULADO): | D31: =ROUND((((1+((E7+E18)/100))*(1+E23/100)*(1+E25/100))/(1-D12/100)-1)*100,2) -> 15 | E31: %
A37: BDI EM CONFORMIDADE COM OS ACÓRDÃOS Nº 2369/2011 e ACÓRDÃO Nº 2.622/2013 - TCU - PLENÁRIO

Sheet CRONOGRAMA
B1: CRONOGRAMA FÍSICO-FINANCEIRO
B2: OBRA: | C2: =ORÇAMENTO!C5 -> PAVIMENTAÇÃO ASFÁLTICA EM CBUQ - VIAS URBANAS DIVERSAS - DISTRITO DE CONCEIÇÃO DE TEIXEIRAS (AUGUSTO DE LIMA / MG) | F2: VALOR: | G2: =ORÇAMENTO!L42 -> 1999276.8
F3: PRAZO: | G3: 180 DIAS
B5: ITEM | C5: ETAPAS/DESCRIÇAO | D5: FISICO/ FINANCEIRO | E5: TOTAL ETAPAS | F5: MÊS 1 | G5: MÊS 2 | H5: MÊS 3 | I5: MÊS 4 | J5: MÊS 5 | K5: MÊS 6 | L5: TOTAL
A6: A | B6: =VLOOKUP(A6,ORÇAMENTO!$A$10:$L$42,2) -> 1 | C6: =VLOOKUP(A6,ORÇAMENTO!$A$10:$L$42,5) -> SERVIÇOS PRELIMINARES | D6: FISICO | E6: =ROUND(E7/$G$2,4) -> 0.0928 | F6: 0.25 | G6: 0.15 | H6: 0.15 | I6: 0.15 | J6: 0.15 | K6: 0.15 | L6: =SUM(F6:K6) -> 1
D7: FINANCEIRO | E7: =ORÇAMENTO!L10 -> 185550.09 | F7: =ROUND($E$7*F6,2) -> 46387.52 | G7: =ROUND($E$7*G6,2) -> 27832.51 | H7: =ROUND($E$7*H6,2) -> 27832.51 | I7: =ROUND($E$7*I6,2) -> 27832.51 | J7: 27832.51 | K7: 27832.51 | L7: =SUM(F7:K7) -> 185550.07
A8: B | B8: =VLOOKUP(A8,ORÇAMENTO!$A$10:$L$42,2) -> 2 | C8: =VLOOKUP(A8,ORÇAMENTO!$A$10:$L$42,5) -> TERRAPLANAGEM E PAVIMENTAÇÃO | D8: FISICO | E8: =ROUND(E9/$G$2,4) -> 0.1992 | F8: 0.1 | G8: 0.2 | H8: 0.2 | I8: 0.2 | J8: 0.2 | K8: 0.1 | L8: =SUM(F8:K8) -> 1
D9: FINANCEIRO | E9: =ORÇAMENTO!L16 -> 398255.9 | F9: =ROUND($E$9*F8,2) -> 39825.59 | G9: =ROUND($E$9*G8,2) -> 79651.18 | H9: =ROUND($E$9*H8,2) -> 79651.18 | I9: =ROUND($E$9*I8,2) -> 79651.18 | J9: 79651.18 | K9: 39825.59 | L9: =SUM(F9:K9) -> 398255.9
A10: C | B10: =VLOOKUP(A10,ORÇAMENTO!$A$10:$L$42,2) -> 3 | C10: =VLOOKUP(A10,ORÇAMENTO!$A$10:$L$42,5) -> TRANSPORTE DE MATERIAIS | D10: FISICO | E10: =ROUND(E11/$G$2,4) -> 0.2174 | F10: 0.25 | G10: 0.5 | H10: 0.25 | L10: =SUM(F10:K10) -> 1
D11: FINANCEIRO | E11: =ORÇAMENTO!L23 -> 434708 | F11: =ROUND($E$11*F10,2) -> 108677 | G11: =ROUND($E$11*G10,2) -> 217354 | H11: =ROUND($E$11*H10,2) -> 108677 | I11: =ROUND($E$11*I10,2) -> 0 | J11: 0 | K11: 0 | L11: =SUM(F11:K11)-0.04 -> 434707.96
A12: E | B12: =VLOOKUP(A12,ORÇAMENTO!$A$10:$L$42,2) -> 4 | C12: =VLOOKUP(A12,ORÇAMENTO!$A$10:$L$42,5) -> DRENAGEM E OBRAS COMPLEMENTARES | D12: FISICO | E12: =ROUND(E13/$G$2,4) -> 0.2311 | F12: 0.1 | G12: 0.2 | H12: 0.2 | I12: 0.2 | J12: 0.2 | K12: 0.1 | L12: =SUM(F12:K12) -> 1
D13: FINANCEIRO | E13: =ORÇAMENTO!L29 -> 461977.78 | F13: =ROUND($E$13*F12,2) -> 46197.78 | G13: =ROUND($E$13*G12,2) -> 92395.56 | H13: =ROUND($E$13*H12,2) -> 92395.56 | I13: =ROUND($E$13*I12,2) -> 92395.56 | J13: 92395.56 | K13: 46197.78 | L13: =SUM(F13:K13)-0.02 -> 461977.78
A14: F | B14: =VLOOKUP(A14,ORÇAMENTO!$A$10:$L$42,2) -> 5 | C14: =VLOOKUP(A14,ORÇAMENTO!$A$10:$L$42,5) -> FORNECIMENTOS - MATERIAL ASFÁLTICO (BDI DIFERENCIADO) | D14: FISICO | E14: =ROUND(E15/$G$2,4) -> 0.2595 | G14: 0.2 | H14: 0.2 | I14: 0.2 | J14: 0.2 | K14: 0.2 | L14: =SUM(F14:K14) -> 1
D15: FINANCEIRO | E15: =ORÇAMENTO!L35 -> 518785.03 | F15: =ROUND($E$15*F14,2) -> 0 | G15: 103757.01 | H15: 103757.01 | I15: 103757.01 | J15: 103757.01 | K15: 103757.01 | L15: =SUM(F15:K15)-0.02 -> 518785.03
B16: TOTAL | D16: FISICO | E16: =SUM(F16:K16) -> 1.00000001 | F16: =F17/$E$17 -> 0.1205875495 | G16: =G17/$E$17 -> 0.2605893591 | H16: =H17/$E$17 -> 0.2062312032 | I16: =I17/$E$17 -> 0.1518730473 | J16: 0.1518730473 | K16: 0.1088458036 | L16: =SUM(F16:K16) -> 1.00000001
D17: FINANCEIRO | E17: =E11+E9+E7+E15+E13 -> 1999276.8 | F17: =F11+F9+F7+F15+F13 -> 241087.89 | G17: =G11+G9+G7+G15+G13 -> 520990.26 | H17: 412313.26 | I17: 303636.26 | J17: 303636.26 | K17: 217612.89 | L17: =SUM(F17:K17)-0.02 -> 1999276.8
B19: OBSERVAÇÕES:
